[Event "January 2 Late 2024"]
[Site "https://www.chess.com"]
[Date "2024.01.02"]
[Round "4"]
[White "Seemann, Jakub"]
[Black "Klenburg, Michael"]
[Result "1-0"]
[Board "52"]
[TimeControl "180+1"]
[WhiteFideId "21874697"]
[BlackFideId "14102072"]
[WhiteElo "2813"]
[BlackElo "2547"]
[WhiteTeam "POL"]
[BlackTeam "ISR"]
[WhiteClock "0:00:08"]
[BlackClock "0:00:00"]

1. b3 {[%clk 0:03:00]}  d6 {[%clk 0:02:59]} 2. Bb2 {[%clk 0:02:59]}  Nd7 {[%clk 0:02:59]} 3. g3 {[%clk 0:02:58]}  Ngf6 {[%clk 0:02:59]} 4. Bg2 {[%clk 0:02:59]}  g6 {[%clk 0:02:59]} 5. e3 {[%clk 0:02:59]}  Bg7 {[%clk 0:02:59]} 6. Ne2 {[%clk 0:03:00]}  O-O {[%clk 0:02:59]} 7. O-O {[%clk 0:03:01]}  e5 {[%clk 0:02:59]} 8. d3 {[%clk 0:03:01]}  Re8 {[%clk 0:02:59]} 9. Nd2 {[%clk 0:03:02]}  c6 {[%clk 0:02:59]} 10. h3 {[%clk 0:03:02]}  d5 {[%clk 0:02:58]} 11. a3 {[%clk 0:03:03]}  Nf8 {[%clk 0:02:56]} 12. c4 {[%clk 0:03:02]}  h5 {[%clk 0:02:56]} 13. Rc1 {[%clk 0:03:00]}  N8h7 {[%clk 0:02:55]} 14. Rc2 {[%clk 0:02:52]}  Ng5 {[%clk 0:02:43]} 15. h4 {[%clk 0:02:50]}  Ngh7 {[%clk 0:02:41]} 16. Qa1 {[%clk 0:02:49]}  Ng4 {[%clk 0:02:40]} 17. cxd5 {[%clk 0:02:43]}  cxd5 {[%clk 0:02:40]} 18. b4 {[%clk 0:02:36]}  a5 {[%clk 0:02:25]} 19. b5 {[%clk 0:02:35]}  a4 {[%clk 0:02:23]} 20. Rfc1 {[%clk 0:02:24]}  g5 {[%clk 0:01:58]} 21. Nf3 {[%clk 0:02:18]}  gxh4 {[%clk 0:01:54]} 22. Nxh4 {[%clk 0:02:19]}  Ng5 {[%clk 0:01:51]} 23. Rc7 {[%clk 0:01:37]}  Ne6 {[%clk 0:01:48]} 24. R7c2 {[%clk 0:00:34]}  d4 {[%clk 0:01:18]} 25. exd4 {[%clk 0:00:28]}  Nxd4 {[%clk 0:01:15]} 26. Nxd4 {[%clk 0:00:27]}  exd4 {[%clk 0:01:15]} 27. Rc5 {[%clk 0:00:19]}  Qf6 {[%clk 0:00:56]} 28. Rf1 {[%clk 0:00:18]}  Be6 {[%clk 0:00:35]} 29. Nf3 {[%clk 0:00:15]}  Rad8 {[%clk 0:00:32]} 30. Rxh5 {[%clk 0:00:13]}  Bd5 {[%clk 0:00:30]} 31. Bxd4 {[%clk 0:00:10]}  Bxf3 {[%clk 0:00:18]} 32. Bxf6 {[%clk 0:00:09]}  Bxf6 {[%clk 0:00:17]} 33. Qa2 {[%clk 0:00:05]}  Bxg2 {[%clk 0:00:16]} 34. Kxg2 {[%clk 0:00:06]}  Rxd3 {[%clk 0:00:14]} 35. Qc4 {[%clk 0:00:05]}  Rd4 {[%clk 0:00:13]} 36. Qc2 {[%clk 0:00:04]}  Red8 {[%clk 0:00:13]} 37. Qf5 {[%clk 0:00:04]}  Kf8 {[%clk 0:00:10]} 38. Rh7 {[%clk 0:00:04]}  R8d5 {[%clk 0:00:09]} 39. Qc8+ {[%clk 0:00:04]}  Rd8 {[%clk 0:00:09]} 40. Qxb7 {[%clk 0:00:05]}  R4d7 {[%clk 0:00:09]} 41. Qe4 {[%clk 0:00:04]}  Ne5 {[%clk 0:00:09]} 42. Rfh1 {[%clk 0:00:05]}  Ng6 {[%clk 0:00:09]} 43. Qg4 {[%clk 0:00:04]}  Re7 {[%clk 0:00:08]} 44. Qf3 {[%clk 0:00:05]}  Bg7 {[%clk 0:00:08]} 45. Rxg7 {[%clk 0:00:05]}  Kxg7 {[%clk 0:00:08]} 46. b6 {[%clk 0:00:06]}  Rb8 {[%clk 0:00:07]} 47. Qc3+ {[%clk 0:00:03]}  Kg8 {[%clk 0:00:07]} 48. Qc5 {[%clk 0:00:04]}  Reb7 {[%clk 0:00:07]} 49. Rb1 {[%clk 0:00:04]}  Kg7 {[%clk 0:00:07]} 50. Rb4 {[%clk 0:00:04]}  Kg8 {[%clk 0:00:07]} 51. Qd4 {[%clk 0:00:05]}  Kf8 {[%clk 0:00:07]} 52. Rxa4 {[%clk 0:00:05]}  Rxb6 {[%clk 0:00:07]} 53. Rb4 {[%clk 0:00:06]}  Rxb4 {[%clk 0:00:07]} 54. axb4 {[%clk 0:00:07]}  Rb7 {[%clk 0:00:07]} 55. Qc5+ {[%clk 0:00:06]}  Ke8 {[%clk 0:00:07]} 56. b5 {[%clk 0:00:07]}  Kd7 {[%clk 0:00:00]} 57. Qc6+ {[%clk 0:00:08]} 1-0

[Event "January 2 Late 2024"]
[Site "https://www.chess.com"]
[Date "2024.01.02"]
[Round "4"]
[White "Pinero Rodriguez, Carlos Jose"]
[Black "Panchenko, Dmitry"]
[Result "0-1"]
[Board "55"]
[TimeControl "180+1"]
[WhiteFideId "3901726"]
[BlackFideId "4169158"]
[WhiteElo "2541"]
[BlackElo "2807"]
[WhiteTeam "VEN"]
[BlackTeam "RUS"]
[WhiteClock "0:00:00"]
[BlackClock "0:01:29"]

1. e4 {[%clk 0:03:00]}  c6 {[%clk 0:02:58]} 2. Nc3 {[%clk 0:03:00]}  d5 {[%clk 0:02:59]} 3. Qf3 {[%clk 0:03:00]}  dxe4 {[%clk 0:02:38]} 4. Nxe4 {[%clk 0:03:00]}  Nf6 {[%clk 0:02:38]} 5. Nxf6+ {[%clk 0:02:59]}  exf6 {[%clk 0:02:37]} 6. Bc4 {[%clk 0:02:59]}  Qd4 {[%clk 0:02:32]} 7. Qb3 {[%clk 0:02:50]}  Qe4+ {[%clk 0:02:29]} 8. Ne2 {[%clk 0:02:06]}  Bc5 {[%clk 0:02:19]} 9. Bxf7+ {[%clk 0:02:01]}  Kf8 {[%clk 0:02:18]} 10. O-O {[%clk 0:02:01]}  Qxe2 {[%clk 0:02:15]} 11. d4 {[%clk 0:01:58]}  Bxd4 {[%clk 0:02:14]} 12. Bf4 {[%clk 0:01:54]}  Qe7 {[%clk 0:02:13]} 13. Rfe1 {[%clk 0:01:44]}  Be5 {[%clk 0:02:12]} 14. Rad1 {[%clk 0:01:30]}  Nd7 {[%clk 0:02:09]} 15. Bh5 {[%clk 0:01:26]}  g6 {[%clk 0:02:08]} 16. Bh6+ {[%clk 0:01:24]}  Ke8 {[%clk 0:02:06]} 17. f4 {[%clk 0:01:13]}  gxh5 {[%clk 0:02:05]} 18. Qh3 {[%clk 0:01:05]}  Qf7 {[%clk 0:01:52]} 19. Qh4 {[%clk 0:00:49]}  Qg6 {[%clk 0:01:50]} 20. fxe5 {[%clk 0:00:45]}  Qxh6 {[%clk 0:01:50]} 21. exf6+ {[%clk 0:00:42]}  Kf8 {[%clk 0:01:49]} 22. f7 {[%clk 0:00:32]}  Nf6 {[%clk 0:01:41]} 23. Rd8+ {[%clk 0:00:20]}  Kxf7 {[%clk 0:01:41]} 24. Rxh8 {[%clk 0:00:19]}  Qg7 {[%clk 0:01:36]} 25. Rd8 {[%clk 0:00:16]}  Kg6 {[%clk 0:01:35]} 26. Re5 {[%clk 0:00:14]}  h6 {[%clk 0:01:34]} 27. Qf4 {[%clk 0:00:13]}  Kh7 {[%clk 0:01:33]} 28. Rd6 {[%clk 0:00:09]}  Bh3 {[%clk 0:01:32]} 29. Re2 {[%clk 0:00:06]}  Re8 {[%clk 0:01:30]} 30. Rdd2 {[%clk 0:00:00]}  Nd5 {[%clk 0:01:29]} 0-1

[Event "January 2 Late 2024"]
[Site "https://www.chess.com"]
[Date "2024.01.02"]
[Round "4"]
[White "Chirilov, James A"]
[Black "Asish Panda"]
[Result "0-1"]
[Board "56"]
[TimeControl "180+1"]
[WhiteFideId "30976677"]
[BlackFideId "45012458"]
[WhiteElo "2799"]
[BlackElo "2539"]
[WhiteTeam "USA"]
[BlackTeam "IND"]
[WhiteClock "0:00:00"]
[BlackClock "0:00:10"]

1. Nf3 {[%clk 0:03:00]}  d5 {[%clk 0:02:58]} 2. g3 {[%clk 0:03:01]}  Nf6 {[%clk 0:02:57]} 3. Bg2 {[%clk 0:02:58]}  e6 {[%clk 0:02:57]} 4. O-O {[%clk 0:02:59]}  Be7 {[%clk 0:02:55]} 5. d3 {[%clk 0:02:59]}  O-O {[%clk 0:02:54]} 6. Nbd2 {[%clk 0:03:00]}  c5 {[%clk 0:02:55]} 7. e4 {[%clk 0:03:00]}  dxe4 {[%clk 0:02:55]} 8. dxe4 {[%clk 0:03:00]}  Nc6 {[%clk 0:02:55]} 9. c3 {[%clk 0:02:59]}  Qc7 {[%clk 0:02:52]} 10. Qe2 {[%clk 0:02:58]}  e5 {[%clk 0:02:45]} 11. h3 {[%clk 0:02:57]}  a5 {[%clk 0:02:39]} 12. Nc4 {[%clk 0:02:55]}  b6 {[%clk 0:02:32]} 13. b3 {[%clk 0:02:51]}  Ba6 {[%clk 0:02:30]} 14. a4 {[%clk 0:02:50]}  b5 {[%clk 0:02:25]} 15. axb5 {[%clk 0:02:47]}  Bxb5 {[%clk 0:02:26]} 16. Nfd2 {[%clk 0:02:29]}  Rfd8 {[%clk 0:02:16]} 17. Rd1 {[%clk 0:02:23]}  a4 {[%clk 0:02:12]} 18. bxa4 {[%clk 0:02:20]}  Rxa4 {[%clk 0:02:11]} 19. Rxa4 {[%clk 0:02:02]}  Bxa4 {[%clk 0:02:12]} 20. Re1 {[%clk 0:02:00]}  Bb5 {[%clk 0:02:09]} 21. Qf3 {[%clk 0:01:59]}  Na5 {[%clk 0:02:03]} 22. Ne3 {[%clk 0:01:55]}  c4 {[%clk 0:01:27]} 23. g4 {[%clk 0:01:49]}  Nb3 {[%clk 0:01:23]} 24. Nxb3 {[%clk 0:01:20]}  cxb3 {[%clk 0:01:24]} 25. Nf5 {[%clk 0:00:58]}  Bf8 {[%clk 0:01:08]} 26. Bg5 {[%clk 0:00:51]}  Rd3 {[%clk 0:00:59]} 27. Qe2 {[%clk 0:00:34]}  Qxc3 {[%clk 0:00:52]} 28. Rc1 {[%clk 0:00:33]}  Qb4 {[%clk 0:00:34]} 29. Qb2 {[%clk 0:00:31]}  Qa3 {[%clk 0:00:27]} 30. Qb1 {[%clk 0:00:29]}  b2 {[%clk 0:00:21]} 31. Re1 {[%clk 0:00:25]}  Rc3 {[%clk 0:00:18]} 32. Bf1 {[%clk 0:00:21]}  Bxf1 {[%clk 0:00:16]} 33. Kxf1 {[%clk 0:00:22]}  Rxh3 {[%clk 0:00:15]} 34. Bxf6 {[%clk 0:00:19]}  Qf3 {[%clk 0:00:12]} 35. Ng3 {[%clk 0:00:15]}  gxf6 {[%clk 0:00:07]} 36. Qd1 {[%clk 0:00:05]}  Rxg3 {[%clk 0:00:05]} 37. Qxf3 {[%clk 0:00:02]}  Rxf3 {[%clk 0:00:06]} 38. Rb1 {[%clk 0:00:02]}  Rb3 {[%clk 0:00:06]} 39. Ke2 {[%clk 0:00:03]}  Ba3 {[%clk 0:00:06]} 40. f3 {[%clk 0:00:03]}  Rc3 {[%clk 0:00:07]} 41. Kd2 {[%clk 0:00:04]}  Rc1 {[%clk 0:00:07]} 42. Rxb2 {[%clk 0:00:05]}  Bxb2 {[%clk 0:00:07]} 43. Ke2 {[%clk 0:00:06]}  Rc2+ {[%clk 0:00:07]} 44. Kd3 {[%clk 0:00:05]}  Rf2 {[%clk 0:00:08]} 45. Ke3 {[%clk 0:00:06]}  Bd4+ {[%clk 0:00:08]} 46. Kd3 {[%clk 0:00:07]}  Rxf3+ {[%clk 0:00:09]} 47. Kc4 {[%clk 0:00:08]}  Rf4 {[%clk 0:00:09]} 48. g5 {[%clk 0:00:09]}  fxg5 {[%clk 0:00:09]} 49. Kd5 {[%clk 0:00:10]}  g4 {[%clk 0:00:10]} 50. Kd6 {[%clk 0:00:11]}  g3 {[%clk 0:00:10]} 51. Ke7 {[%clk 0:00:11]}  g2 {[%clk 0:00:11]} 52. Ke8 {[%clk 0:00:12]}  g1=Q {[%clk 0:00:11]} 53. Ke7 {[%clk 0:00:13]}  Qb1 {[%clk 0:00:12]} 54. Kd8 {[%clk 0:00:13]}  Qb7 {[%clk 0:00:10]} 55. Ke8 {[%clk 0:00:13]}  Rf3 {[%clk 0:00:10]} 56. Kd8 {[%clk 0:00:00]}  Ra3 {[%clk 0:00:10]} 0-1

[Event "January 2 Late 2024"]
[Site "https://www.chess.com"]
[Date "2024.01.02"]
[Round "4"]
[White "Ismayil, Malak"]
[Black "Lagarde, Maxime"]
[Result "0-1"]
[Board "57"]
[TimeControl "180+1"]
[WhiteFideId "13412604"]
[BlackFideId "662399"]
[WhiteElo "2538"]
[BlackElo "2791"]
[WhiteTeam "AZE"]
[BlackTeam "FRA"]
[WhiteClock "0:00:00"]
[BlackClock "0:00:25"]

1. e4 {[%clk 0:02:53]}  c6 {[%clk 0:02:49]} 2. d4 {[%clk 0:02:52]}  d5 {[%clk 0:02:49]} 3. Nc3 {[%clk 0:02:53]}  dxe4 {[%clk 0:02:47]} 4. Nxe4 {[%clk 0:02:54]}  Nf6 {[%clk 0:02:47]} 5. Nxf6+ {[%clk 0:02:54]}  exf6 {[%clk 0:02:48]} 6. c3 {[%clk 0:02:52]}  Bd6 {[%clk 0:02:46]} 7. Bd3 {[%clk 0:02:52]}  O-O {[%clk 0:02:45]} 8. Qc2 {[%clk 0:02:52]}  Re8+ {[%clk 0:02:44]} 9. Ne2 {[%clk 0:02:50]}  h5 {[%clk 0:02:44]} 10. Be3 {[%clk 0:02:50]}  h4 {[%clk 0:02:35]} 11. O-O-O {[%clk 0:02:48]}  b5 {[%clk 0:02:29]} 12. Kb1 {[%clk 0:02:42]}  Be6 {[%clk 0:02:26]} 13. c4 {[%clk 0:02:36]}  Na6 {[%clk 0:02:21]} 14. a3 {[%clk 0:01:46]}  Qa5 {[%clk 0:02:18]} 15. d5 {[%clk 0:01:28]}  cxd5 {[%clk 0:02:13]} 16. cxb5 {[%clk 0:01:27]}  Rac8 {[%clk 0:02:07]} 17. Qd2 {[%clk 0:01:25]}  Bb4 {[%clk 0:01:55]} 18. axb4 {[%clk 0:00:55]}  Nxb4 {[%clk 0:01:56]} 19. b3 {[%clk 0:00:55]}  a6 {[%clk 0:01:07]} 20. Nd4 {[%clk 0:00:37]}  axb5 {[%clk 0:01:05]} 21. Bxb5 {[%clk 0:00:36]}  Ra8 {[%clk 0:00:46]} 22. Ba4 {[%clk 0:00:31]}  Bd7 {[%clk 0:00:38]} 23. Nc2 {[%clk 0:00:26]}  Reb8 {[%clk 0:00:37]} 24. Bxd7 {[%clk 0:00:04]}  Qa2+ {[%clk 0:00:30]} 25. Kc1 {[%clk 0:00:03]}  Qxb3 {[%clk 0:00:26]} 26. Qc3 {[%clk 0:00:00]}  Qxc3 {[%clk 0:00:25]} 0-1

[Event "January 2 Late 2024"]
[Site "https://www.chess.com"]
[Date "2024.01.02"]
[Round "4"]
[White "Pinheiro, Iung Alicio de O."]
[Black "Timmermans, Mark"]
[Result "0-1"]
[Board "60"]
[TimeControl "180+1"]
[WhiteFideId "2104350"]
[BlackFideId "1026399"]
[WhiteElo "2536"]
[BlackElo "2770"]
[WhiteTeam "BRA"]
[BlackTeam "NED"]
[WhiteClock "0:00:07"]
[BlackClock "0:01:17"]

1. d4 {[%clk 0:02:58]}  Nf6 {[%clk 0:02:55]} 2. Nf3 {[%clk 0:02:57]}  e6 {[%clk 0:02:52]} 3. e3 {[%clk 0:02:56]}  d5 {[%clk 0:02:45]} 4. Bd3 {[%clk 0:02:55]}  Be7 {[%clk 0:02:44]} 5. O-O {[%clk 0:02:52]}  O-O {[%clk 0:02:42]} 6. b3 {[%clk 0:02:51]}  b6 {[%clk 0:02:40]} 7. Bb2 {[%clk 0:02:51]}  Bb7 {[%clk 0:02:26]} 8. Nbd2 {[%clk 0:02:49]}  Nbd7 {[%clk 0:02:26]} 9. Ne5 {[%clk 0:02:49]}  Ne4 {[%clk 0:02:24]} 10. Nxd7 {[%clk 0:02:27]}  Qxd7 {[%clk 0:02:22]} 11. Nxe4 {[%clk 0:02:11]}  dxe4 {[%clk 0:02:22]} 12. Bc4 {[%clk 0:02:12]}  b5 {[%clk 0:02:17]} 13. Be2 {[%clk 0:02:12]}  b4 {[%clk 0:02:17]} 14. f3 {[%clk 0:02:10]}  a5 {[%clk 0:02:16]} 15. a4 {[%clk 0:02:05]}  Rfd8 {[%clk 0:02:07]} 16. fxe4 {[%clk 0:02:03]}  Bxe4 {[%clk 0:02:07]} 17. Bf3 {[%clk 0:02:04]}  Qd5 {[%clk 0:02:02]} 18. Qe2 {[%clk 0:01:46]}  Bf6 {[%clk 0:02:00]} 19. Bxe4 {[%clk 0:01:35]}  Qxe4 {[%clk 0:02:01]} 20. Rf4 {[%clk 0:01:34]}  Qd5 {[%clk 0:01:51]} 21. Raf1 {[%clk 0:01:32]}  c5 {[%clk 0:01:50]} 22. Rxf6 {[%clk 0:01:25]}  gxf6 {[%clk 0:01:51]} 23. dxc5 {[%clk 0:01:26]}  e5 {[%clk 0:01:47]} 24. Qg4+ {[%clk 0:01:09]}  Kf8 {[%clk 0:01:42]} 25. Qh4 {[%clk 0:01:08]}  Ra6 {[%clk 0:01:37]} 26. h3 {[%clk 0:00:47]}  Qxc5 {[%clk 0:01:22]} 27. Rxf6 {[%clk 0:00:33]}  Rxf6 {[%clk 0:01:23]} 28. Qxf6 {[%clk 0:00:33]}  Qxe3+ {[%clk 0:01:24]} 29. Kh2 {[%clk 0:00:32]}  Qf4+ {[%clk 0:01:18]} 30. Qxf4 {[%clk 0:00:32]}  exf4 {[%clk 0:01:19]} 31. Be5 {[%clk 0:00:33]}  Rc8 {[%clk 0:01:17]} 32. Bxf4 {[%clk 0:00:27]}  Rxc2 {[%clk 0:01:17]} 33. Be3 {[%clk 0:00:22]}  Rc3 {[%clk 0:01:16]} 34. Bb6 {[%clk 0:00:22]}  Rxb3 {[%clk 0:01:17]} 35. Bxa5 {[%clk 0:00:22]}  Rb1 {[%clk 0:01:17]} 36. Bb6 {[%clk 0:00:07]}  b3 {[%clk 0:01:17]} 0-1

[Event "January 2 Late 2024"]
[Site "https://www.chess.com"]
[Date "2024.01.02"]
[Round "4"]
[White "Thomforde-Toates, Noah"]
[Black "Przybylski, Wojciech"]
[Result "0-1"]
[Board "62"]
[TimeControl "180+1"]
[WhiteFideId "30951992"]
[BlackFideId "1117599"]
[WhiteElo "2743"]
[BlackElo "2534"]
[WhiteTeam "USA"]
[BlackTeam "POL"]
[WhiteClock "0:01:35"]
[BlackClock "0:01:13"]

1. d4 {[%clk 0:03:00]}  Nf6 {[%clk 0:02:58]} 2. Nc3 {[%clk 0:03:00]}  d5 {[%clk 0:02:57]} 3. Bf4 {[%clk 0:03:01]}  c6 {[%clk 0:02:56]} 4. e3 {[%clk 0:03:00]}  Bf5 {[%clk 0:02:55]} 5. Bd3 {[%clk 0:02:57]}  Bg6 {[%clk 0:02:56]} 6. Nf3 {[%clk 0:02:57]}  Nbd7 {[%clk 0:02:54]} 7. Ne5 {[%clk 0:02:57]}  Bxd3 {[%clk 0:02:50]} 8. Qxd3 {[%clk 0:02:56]}  e6 {[%clk 0:02:50]} 9. Bg3 {[%clk 0:02:55]}  Qb6 {[%clk 0:02:47]} 10. O-O-O {[%clk 0:02:52]}  a5 {[%clk 0:02:45]} 11. f4 {[%clk 0:02:48]}  a4 {[%clk 0:02:42]} 12. f5 {[%clk 0:02:45]}  a3 {[%clk 0:02:38]} 13. b3 {[%clk 0:02:45]}  Bb4 {[%clk 0:02:37]} 14. Nxd7 {[%clk 0:02:44]}  Nxd7 {[%clk 0:02:33]} 15. fxe6 {[%clk 0:02:44]}  fxe6 {[%clk 0:02:32]} 16. e4 {[%clk 0:02:40]}  O-O {[%clk 0:02:20]} 17. Ne2 {[%clk 0:02:34]}  Nf6 {[%clk 0:02:15]} 18. e5 {[%clk 0:02:30]}  Ne4 {[%clk 0:02:15]} 19. Rhf1 {[%clk 0:02:27]}  Bd2+ {[%clk 0:02:07]} 20. Kb1 {[%clk 0:02:25]}  Bh6 {[%clk 0:02:06]} 21. Bf4 {[%clk 0:02:22]}  Bxf4 {[%clk 0:02:00]} 22. Rxf4 {[%clk 0:02:22]}  Rxf4 {[%clk 0:01:49]} 23. Nxf4 {[%clk 0:02:22]}  c5 {[%clk 0:01:49]} 24. dxc5 {[%clk 0:02:17]}  Qxc5 {[%clk 0:01:49]} 25. Nxe6 {[%clk 0:02:16]}  Qc3 {[%clk 0:01:49]} 26. Qd4 {[%clk 0:02:05]}  Re8 {[%clk 0:01:38]} 27. Nf4 {[%clk 0:01:59]}  Rxe5 {[%clk 0:01:32]} 28. Nxd5 {[%clk 0:01:51]}  Nd2+ {[%clk 0:01:19]} 29. Kc1 {[%clk 0:01:36]}  Qxd4 {[%clk 0:01:14]} 30. Rxd2 {[%clk 0:01:35]}  Qa1# {[%clk 0:01:13]} 0-1

[Event "January 2 Late 2024"]
[Site "https://www.chess.com"]
[Date "2024.01.02"]
[Round "4"]
[White "Novozhilov, Semen"]
[Black "Matta, Nicholas"]
[Result "0-1"]
[Board "63"]
[TimeControl "180+1"]
[WhiteFideId "24289167"]
[BlackFideId "30914523"]
[WhiteElo "2742"]
[BlackElo "2534"]
[WhiteTeam "RUS"]
[BlackTeam "USA"]
[WhiteClock "0:00:25"]
[BlackClock "0:00:17"]

1. d4 {[%clk 0:03:00]}  Nf6 {[%clk 0:02:59]} 2. Nf3 {[%clk 0:03:01]}  g6 {[%clk 0:02:59]} 3. Nc3 {[%clk 0:03:01]}  d5 {[%clk 0:02:52]} 4. Bf4 {[%clk 0:03:00]}  Bg7 {[%clk 0:02:48]} 5. Nb5 {[%clk 0:03:00]}  Na6 {[%clk 0:02:48]} 6. e3 {[%clk 0:02:59]}  O-O {[%clk 0:02:45]} 7. Be2 {[%clk 0:02:57]}  c6 {[%clk 0:02:40]} 8. Nc3 {[%clk 0:02:57]}  Qb6 {[%clk 0:02:41]} 9. a3 {[%clk 0:02:53]}  Ne4 {[%clk 0:02:36]} 10. Nxe4 {[%clk 0:02:53]}  dxe4 {[%clk 0:02:37]} 11. Nd2 {[%clk 0:02:53]}  Qxb2 {[%clk 0:02:32]} 12. Nxe4 {[%clk 0:02:53]}  Bf5 {[%clk 0:02:28]} 13. Bd3 {[%clk 0:02:51]}  Bxe4 {[%clk 0:02:25]} 14. Bxe4 {[%clk 0:02:52]}  e5 {[%clk 0:02:23]} 15. dxe5 {[%clk 0:02:42]}  Rad8 {[%clk 0:02:18]} 16. Bd3 {[%clk 0:02:41]}  Qc3+ {[%clk 0:02:11]} 17. Ke2 {[%clk 0:02:39]}  Nc5 {[%clk 0:02:05]} 18. Rb1 {[%clk 0:02:22]}  Bxe5 {[%clk 0:02:00]} 19. Bxe5 {[%clk 0:02:17]}  Qxe5 {[%clk 0:02:01]} 20. Qc1 {[%clk 0:02:12]}  Qg5 {[%clk 0:01:49]} 21. g3 {[%clk 0:02:09]}  Qh5+ {[%clk 0:01:45]} 22. f3 {[%clk 0:02:09]}  Rfe8 {[%clk 0:01:44]} 23. Rb4 {[%clk 0:02:06]}  a5 {[%clk 0:01:37]} 24. Rh4 {[%clk 0:02:03]}  Qe5 {[%clk 0:01:31]} 25. Rd1 {[%clk 0:01:58]}  b5 {[%clk 0:01:21]} 26. e4 {[%clk 0:01:58]}  h5 {[%clk 0:01:09]} 27. Qf4 {[%clk 0:01:44]}  Nxd3 {[%clk 0:01:01]} 28. cxd3 {[%clk 0:01:41]}  Qb2+ {[%clk 0:01:00]} 29. Rd2 {[%clk 0:01:41]}  Qxa3 {[%clk 0:01:00]} 30. g4 {[%clk 0:01:41]}  hxg4 {[%clk 0:00:51]} 31. Qxg4 {[%clk 0:01:36]}  Qc3 {[%clk 0:00:47]} 32. Qg5 {[%clk 0:01:30]}  Qe5 {[%clk 0:00:44]} 33. Qh6 {[%clk 0:01:26]}  Qg7 {[%clk 0:00:44]} 34. Qe3 {[%clk 0:01:26]}  a4 {[%clk 0:00:39]} 35. d4 {[%clk 0:01:22]}  b4 {[%clk 0:00:39]} 36. e5 {[%clk 0:01:21]}  c5 {[%clk 0:00:37]} 37. f4 {[%clk 0:01:10]}  cxd4 {[%clk 0:00:28]} 38. Rxd4 {[%clk 0:01:11]}  Rxd4 {[%clk 0:00:28]} 39. Qxd4 {[%clk 0:01:12]}  Qf6 {[%clk 0:00:28]} 40. Rh3 {[%clk 0:01:08]}  Qa6+ {[%clk 0:00:27]} 41. Rd3 {[%clk 0:01:08]}  b3 {[%clk 0:00:26]} 42. Qd7 {[%clk 0:01:07]}  Rb8 {[%clk 0:00:20]} 43. Kd2 {[%clk 0:00:34]}  b2 {[%clk 0:00:20]} 44. Qc7 {[%clk 0:00:34]}  Qb6 {[%clk 0:00:18]} 45. Rd8+ {[%clk 0:00:25]}  Rxd8+ {[%clk 0:00:17]} 0-1

[Event "January 2 Late 2024"]
[Site "https://www.chess.com"]
[Date "2024.01.02"]
[Round "4"]
[White "Weisz, Bryan"]
[Black "Msellek, Ilyass"]
[Result "0-1"]
[Board "67"]
[TimeControl "180+1"]
[WhiteFideId "30934133"]
[BlackFideId "675938"]
[WhiteElo "2523"]
[BlackElo "2735"]
[WhiteTeam "USA"]
[BlackTeam "MAR"]
[WhiteClock "0:00:42"]
[BlackClock "0:01:54"]

1. d4 {[%clk 0:03:00]}  Nf6 {[%clk 0:02:59]} 2. c4 {[%clk 0:02:59]}  g6 {[%clk 0:03:00]} 3. Nc3 {[%clk 0:02:59]}  Bg7 {[%clk 0:03:00]} 4. f3 {[%clk 0:02:57]}  O-O {[%clk 0:03:01]} 5. e4 {[%clk 0:02:58]}  d6 {[%clk 0:03:01]} 6. Bg5 {[%clk 0:02:50]}  c5 {[%clk 0:02:59]} 7. d5 {[%clk 0:02:48]}  a6 {[%clk 0:02:36]} 8. Qd2 {[%clk 0:02:41]}  b5 {[%clk 0:02:34]} 9. cxb5 {[%clk 0:02:39]}  axb5 {[%clk 0:02:35]} 10. Bxb5 {[%clk 0:02:36]}  Ba6 {[%clk 0:02:35]} 11. h4 {[%clk 0:02:08]}  Nbd7 {[%clk 0:02:18]} 12. Bxa6 {[%clk 0:01:45]}  Rxa6 {[%clk 0:02:17]} 13. h5 {[%clk 0:01:45]}  c4 {[%clk 0:02:16]} 14. Bh6 {[%clk 0:01:34]}  Qb6 {[%clk 0:02:08]} 15. Bxg7 {[%clk 0:01:18]}  Kxg7 {[%clk 0:02:09]} 16. hxg6 {[%clk 0:01:18]}  fxg6 {[%clk 0:02:10]} 17. e5 {[%clk 0:01:14]}  Nxe5 {[%clk 0:02:09]} 18. Qh6+ {[%clk 0:01:10]}  Kg8 {[%clk 0:02:08]} 19. Ne4 {[%clk 0:01:10]}  Nd3+ {[%clk 0:02:04]} 20. Kf1 {[%clk 0:01:01]}  Rf7 {[%clk 0:02:00]} 21. Nxf6+ {[%clk 0:00:45]}  exf6 {[%clk 0:02:01]} 22. Nh3 {[%clk 0:00:46]}  Qxb2 {[%clk 0:01:55]} 23. Rd1 {[%clk 0:00:43]}  Rxa2 {[%clk 0:01:54]} 24. Qe3 {[%clk 0:00:42]}  Qxg2# {[%clk 0:01:54]} 0-1